[Event "*** Titled Tuesday Blitz"]
[Site "Chess.com"]
[Date "2020.05.19"]
[Round "8"]
[White "lupta_robin"]
[Black "gvanna"]
[Result "0-1"]
[WhiteElo "2604"]
[BlackElo "2476"]
[TimeControl "180+1"]
[EndTime "13:37:56 PDT"]
[Termination "gvanna won by checkmate"]

1. e4 {[%clk 0:03:00.9]} 1... c5 {[%clk 0:02:59.3]} 2. Nf3 {[%clk 0:03:00.5]}
2... Nc6 {[%clk 0:02:59.1]} 3. d4 {[%clk 0:03:00.9]} 3... cxd4 {[%clk
0:02:59.1]} 4. Nxd4 {[%clk 0:02:59.6]} 4... g6 {[%clk 0:02:59.4]} 5. c4 {[%clk
0:02:55.9]} 5... Nf6 {[%clk 0:02:58.7]} 6. Nc3 {[%clk 0:02:55.3]} 6... Nxd4
{[%clk 0:02:58.7]} 7. Qxd4 {[%clk 0:02:54.9]} 7... d6 {[%clk 0:02:59.1]} 8. Be3
{[%clk 0:02:54.7]} 8... Bg7 {[%clk 0:02:58.5]} 9. Be2 {[%clk 0:02:55.2]} 9...
O-O {[%clk 0:02:58.1]} 10. Qd2 {[%clk 0:02:55.4]} 10... a5 {[%clk 0:02:58.1]}
11. O-O {[%clk 0:02:50.6]} 11... a4 {[%clk 0:02:57.8]} 12. Rac1 {[%clk
0:02:41.1]} 12... Be6 {[%clk 0:02:56.9]} 13. f3 {[%clk 0:02:33.9]} 13... Nd7
{[%clk 0:02:55.3]} 14. Nd5 {[%clk 0:02:20.3]} 14... Nc5 {[%clk 0:02:53.8]} 15.
Bd4 {[%clk 0:02:14.1]} 15... Bxd4+ {[%clk 0:02:50.1]} 16. Qxd4 {[%clk
0:02:13.6]} 16... Bxd5 {[%clk 0:02:49.5]} 17. exd5 {[%clk 0:02:05.2]} 17... Qa5
{[%clk 0:02:37.9]} 18. f4 {[%clk 0:02:03.5]} 18... Qb4 {[%clk 0:02:26.5]} 19. h4
{[%clk 0:01:53.7]} 19... b5 {[%clk 0:02:22.4]} 20. h5 {[%clk 0:01:50.8]} 20...
bxc4 {[%clk 0:02:19]} 21. Rxc4 {[%clk 0:01:49.6]} 21... Qb6 {[%clk 0:02:17.4]}
22. Kh2 {[%clk 0:01:34.8]} 22... Rab8 {[%clk 0:02:12.3]} 23. Rc2 {[%clk
0:00:57.3]} 23... Nd7 {[%clk 0:02:04.3]} 24. Qxa4 {[%clk 0:00:51.6]} 24... Nf6
{[%clk 0:02:00.2]} 25. Bf3 {[%clk 0:00:38.7]} 25... Ra8 {[%clk 0:01:47.8]} 26.
Qc4 {[%clk 0:00:38.5]} 26... Kg7 {[%clk 0:01:44.3]} 27. a4 {[%clk 0:00:33.8]}
27... Rfb8 {[%clk 0:01:41.6]} 28. Ra1 {[%clk 0:00:29.1]} 28... gxh5 {[%clk
0:01:38.3]} 29. Ra3 {[%clk 0:00:26.1]} 29... Rc8 {[%clk 0:01:28.8]} 30. Qd3
{[%clk 0:00:22.9]} 30... Qb4 {[%clk 0:01:24.1]} 31. Rxc8 {[%clk 0:00:15]} 31...
Rxc8 {[%clk 0:01:21.9]} 32. Qf5 {[%clk 0:00:13.4]} 32... Qxb2 {[%clk 0:01:16.5]}
33. Re3 {[%clk 0:00:13.5]} 33... Rc7 {[%clk 0:00:38.7]} 34. Bxh5 {[%clk
0:00:12.4]} 34... Kf8 {[%clk 0:00:32.8]} 35. Qg5 {[%clk 0:00:10.5]} 35... Qd4
{[%clk 0:00:23.5]} 36. Rg3 {[%clk 0:00:08.5]} 36... Ke8 {[%clk 0:00:15.8]} 37.
Bf3 {[%clk 0:00:08.5]} 37... Rc4 {[%clk 0:00:15.2]} 38. a5 {[%clk 0:00:08.1]}
38... Qxf4 {[%clk 0:00:15.1]} 39. Qg7 {[%clk 0:00:08]} 39... Qh4+ {[%clk
0:00:13.8]} 40. Rh3 {[%clk 0:00:08.5]} 40... Qf4+ {[%clk 0:00:14]} 41. Rg3
{[%clk 0:00:08.8]} 41... Ra4 {[%clk 0:00:12.5]} 42. Qh8+ {[%clk 0:00:08.5]}
42... Kd7 {[%clk 0:00:12.8]} 43. Qb8 {[%clk 0:00:09]} 43... Qh4+ {[%clk
0:00:11.1]} 44. Rh3 {[%clk 0:00:09.3]} 44... Qf4+ {[%clk 0:00:11.2]} 45. Rg3
{[%clk 0:00:09.9]} 45... Qb4 {[%clk 0:00:09.3]} 46. Qa7+ {[%clk 0:00:07.4]}
46... Kd8 {[%clk 0:00:06.6]} 47. Qa8+ {[%clk 0:00:05.7]} 47... Kc7 {[%clk
0:00:06.6]} 48. Qa7+ {[%clk 0:00:05.7]} 48... Kd8 {[%clk 0:00:06.7]} 49. Rh3
{[%clk 0:00:04]} 49... Qxa5 {[%clk 0:00:06]} 50. Qe3 {[%clk 0:00:03.9]} 50...
Qb4 {[%clk 0:00:05.4]} 51. Kg3 {[%clk 0:00:03]} 51... Qd4 {[%clk 0:00:04.8]} 52.
Qxd4 {[%clk 0:00:02.3]} 52... Rxd4 {[%clk 0:00:04.6]} 53. Rh6 {[%clk 0:00:02.4]}
53... Nxd5 {[%clk 0:00:04.8]} 54. Rxh7 {[%clk 0:00:02.9]} 54... f6 {[%clk
0:00:05.2]} 55. Kf2 {[%clk 0:00:03.2]} 55... f5 {[%clk 0:00:04.4]} 56. Ke2
{[%clk 0:00:03.7]} 56... f4 {[%clk 0:00:04.7]} 57. Kf2 {[%clk 0:00:04.2]} 57...
e5 {[%clk 0:00:04.7]} 58. Ke2 {[%clk 0:00:04.5]} 58... Nc3+ {[%clk 0:00:04.6]}
59. Kf2 {[%clk 0:00:04.2]} 59... Rd2+ {[%clk 0:00:04.8]} 60. Ke1 {[%clk
0:00:04.1]} 60... Rb2 {[%clk 0:00:05]} 61. Bg4 {[%clk 0:00:04.4]} 61... Ke8
{[%clk 0:00:04.2]} 62. Rd7 {[%clk 0:00:04.1]} 62... d5 {[%clk 0:00:04.6]} 63.
Be6 {[%clk 0:00:03.7]} 63... e4 {[%clk 0:00:04.3]} 64. Ra7 {[%clk 0:00:02.9]}
64... e3 {[%clk 0:00:04.2]} 65. Bg4 {[%clk 0:00:02.6]} 65... Rb1+ {[%clk
0:00:04.1]} 66. Bd1 {[%clk 0:00:03.5]} 66... Rxd1# {[%clk 0:00:03.6]} 0-1

[Event "*** Titled Tuesday Blitz"]
[Site "Chess.com"]
[Date "2020.05.19"]
[Round "8"]
[White "K_A_S_T_O_R"]
[Black "Aikiigm"]
[Result "1-0"]
[WhiteElo "2734"]
[BlackElo "2540"]
[TimeControl "180+1"]
[EndTime "13:37:58 PDT"]
[Termination "K_A_S_T_O_R won by resignation"]

1. e4 {[%clk 0:03:00.9]} 1... Nf6 {[%clk 0:02:58.3]} 2. e5 {[%clk 0:02:59.6]}
2... Nd5 {[%clk 0:02:57.6]} 3. d4 {[%clk 0:03:00.5]} 3... d6 {[%clk 0:02:57]} 4.
Nf3 {[%clk 0:03:00.9]} 4... dxe5 {[%clk 0:02:56]} 5. Nxe5 {[%clk 0:03:00.8]}
5... c6 {[%clk 0:02:56]} 6. Be2 {[%clk 0:02:58.7]} 6... Bf5 {[%clk 0:02:55.6]}
7. c3 {[%clk 0:02:57.7]} 7... Nd7 {[%clk 0:02:55.9]} 8. Nf3 {[%clk 0:02:57.5]}
8... Qc7 {[%clk 0:02:56.1]} 9. O-O {[%clk 0:02:57.9]} 9... e6 {[%clk 0:02:55.1]}
10. Re1 {[%clk 0:02:58]} 10... Bd6 {[%clk 0:02:52.6]} 11. Bf1 {[%clk 0:02:58.2]}
11... O-O {[%clk 0:02:50.5]} 12. Nbd2 {[%clk 0:02:58.6]} 12... Rfe8 {[%clk
0:02:48.3]} 13. Nc4 {[%clk 0:02:58.3]} 13... Bf8 {[%clk 0:02:48.1]} 14. g3
{[%clk 0:02:54.7]} 14... c5 {[%clk 0:02:47.4]} 15. Qb3 {[%clk 0:02:50.2]} 15...
Rec8 {[%clk 0:02:37.3]} 16. a4 {[%clk 0:02:44.7]} 16... cxd4 {[%clk 0:02:22.6]}
17. Nxd4 {[%clk 0:02:44.1]} 17... Nc5 {[%clk 0:02:22.6]} 18. Qd1 {[%clk
0:02:42.2]} 18... Bg6 {[%clk 0:02:22.5]} 19. Qf3 {[%clk 0:02:35.2]} 19... Rd8
{[%clk 0:02:18.6]} 20. h4 {[%clk 0:02:31.1]} 20... h6 {[%clk 0:02:16.5]} 21. h5
{[%clk 0:02:27.1]} 21... Bh7 {[%clk 0:02:15.8]} 22. Nb5 {[%clk 0:02:20.7]} 22...
Qe7 {[%clk 0:02:14.3]} 23. Ne5 {[%clk 0:02:16]} 23... a6 {[%clk 0:02:12.5]} 24.
Nd4 {[%clk 0:02:15.3]} 24... Qf6 {[%clk 0:02:08.9]} 25. Qg4 {[%clk 0:02:09.6]}
25... Bd6 {[%clk 0:02:00.9]} 26. f4 {[%clk 0:02:00.8]} 26... Kh8 {[%clk
0:02:00.2]} 27. Qf3 {[%clk 0:01:54.2]} 27... Bxe5 {[%clk 0:01:58]} 28. Rxe5
{[%clk 0:01:52.2]} 28... Rab8 {[%clk 0:01:40.5]} 29. Bd2 {[%clk 0:01:51.1]}
29... Ne7 {[%clk 0:01:36.1]} 30. Be3 {[%clk 0:01:43.3]} 30... Nd3 {[%clk
0:01:29.8]} 31. Bxd3 {[%clk 0:01:41.9]} 31... Bxd3 {[%clk 0:01:30.7]} 32. Bf2
{[%clk 0:01:36.4]} 32... Bc4 {[%clk 0:01:22]} 33. Rae1 {[%clk 0:01:35.2]} 33...
Bd5 {[%clk 0:01:21.5]} 34. Qe2 {[%clk 0:01:35.2]} 34... Rbc8 {[%clk 0:01:16.4]}
35. a5 {[%clk 0:01:32.3]} 35... Kg8 {[%clk 0:01:13.5]} 36. Rc1 {[%clk
0:01:23.9]} 36... Rd7 {[%clk 0:01:05.8]} 37. Re1 {[%clk 0:01:19.9]} 37... Rdc7
{[%clk 0:01:03.4]} 38. Qg4 {[%clk 0:01:02.7]} 38... Rc5 {[%clk 0:00:57.2]} 39.
Ra1 {[%clk 0:01:02.5]} 39... Rc4 {[%clk 0:00:53.6]} 40. Qe2 {[%clk 0:01:02]}
40... Nc6 {[%clk 0:00:50.4]} 41. Nxc6 {[%clk 0:01:01.5]} 41... R4xc6 {[%clk
0:00:51.3]} 42. Bd4 {[%clk 0:01:01.2]} 42... Qd8 {[%clk 0:00:49.3]} 43. Qg4
{[%clk 0:01:00.1]} 43... f6 {[%clk 0:00:49.1]} 44. Re3 {[%clk 0:00:57.1]} 44...
Kh8 {[%clk 0:00:47.9]} 45. b4 {[%clk 0:00:50.2]} 45... Qf8 {[%clk 0:00:47.4]}
46. Rae1 {[%clk 0:00:49]} 46... Qf7 {[%clk 0:00:45]} 47. Qe2 {[%clk 0:00:45.3]}
47... Rd8 {[%clk 0:00:44.1]} 48. Kh2 {[%clk 0:00:44.5]} 48... Rd7 {[%clk
0:00:43.5]} 49. g4 {[%clk 0:00:44.7]} 49... Rc8 {[%clk 0:00:43.6]} 50. Rg1
{[%clk 0:00:41.1]} 50... Rf8 {[%clk 0:00:41]} 51. Reg3 {[%clk 0:00:38.7]} 51...
Bc6 {[%clk 0:00:40.2]} 52. g5 {[%clk 0:00:37.6]} 52... e5 {[%clk 0:00:34.2]} 53.
g6 {[%clk 0:00:34.7]} 53... Qd5 {[%clk 0:00:31]} 54. fxe5 {[%clk 0:00:33]} 54...
fxe5 {[%clk 0:00:28.2]} 55. Qxe5 {[%clk 0:00:25.6]} 55... Rf2+ {[%clk
0:00:27.8]} 56. Kh3 {[%clk 0:00:25.5]} 56... Qxe5 {[%clk 0:00:24.7]} 57. Bxe5
{[%clk 0:00:24.9]} 57... Rdd2 {[%clk 0:00:25.2]} 58. Re3 {[%clk 0:00:20.5]}
58... Bd7+ {[%clk 0:00:20.5]} 59. Kg3 {[%clk 0:00:20.1]} 59... Rh2 {[%clk
0:00:19.4]} 60. Bd4 {[%clk 0:00:19.8]} 60... Rh3+ {[%clk 0:00:17.8]} 61. Kf4
{[%clk 0:00:20.3]} 61... Rf2+ {[%clk 0:00:17.5]} 62. Ke4 {[%clk 0:00:20.7]}
62... Rxh5 {[%clk 0:00:16.4]} 63. Kd3 {[%clk 0:00:16.8]} 63... Bf5+ {[%clk
0:00:16.1]} 64. Kc4 {[%clk 0:00:16.3]} 64... Bxg6 {[%clk 0:00:12.7]} 65. Rxg6
{[%clk 0:00:17.2]} 65... Rg5 {[%clk 0:00:11.4]} 66. Rxh6+ {[%clk 0:00:16.4]}
66... Kg8 {[%clk 0:00:10.5]} 67. Rhe6 {[%clk 0:00:17.3]} 67... Kf7 {[%clk
0:00:10.4]} 68. Re7+ {[%clk 0:00:17.7]} 68... Kg6 {[%clk 0:00:10.4]} 69. Rxb7
{[%clk 0:00:18.6]} 69... Kh5 {[%clk 0:00:11.1]} 70. Rb6 {[%clk 0:00:19.5]} 70...
Kg4 {[%clk 0:00:11.8]} 71. Re5 {[%clk 0:00:19.7]} 71... g6 {[%clk 0:00:12.7]}
72. Rxg5+ {[%clk 0:00:19.8]} 72... Kxg5 {[%clk 0:00:13.5]} 73. Rxa6 {[%clk
0:00:20.2]} 73... Kf5 {[%clk 0:00:14.4]} 74. Rb6 {[%clk 0:00:21.1]} 74... g5
{[%clk 0:00:15]} 75. Rb5+ {[%clk 0:00:22]} 75... Ke4 {[%clk 0:00:15]} 76. Re5+
{[%clk 0:00:22.9]} 76... Kf3 {[%clk 0:00:15.1]} 77. Rxg5 {[%clk 0:00:23.6]} 1-0

[Event "*** Titled Tuesday Blitz"]
[Site "Chess.com"]
[Date "2020.05.19"]
[Round "8"]
[White "chessdjw"]
[Black "rpragchess"]
[Result "0-1"]
[WhiteElo "2723"]
[BlackElo "2843"]
[TimeControl "180+1"]
[EndTime "13:38:03 PDT"]
[Termination "rpragchess won on time"]

1. e4 {[%clk 0:03:00.9]} 1... c5 {[%clk 0:02:56.1]} 2. Nf3 {[%clk 0:03:00.2]}
2... e6 {[%clk 0:02:55.4]} 3. d4 {[%clk 0:02:58.9]} 3... cxd4 {[%clk 0:02:56.3]}
4. Nxd4 {[%clk 0:02:57.5]} 4... a6 {[%clk 0:02:56.8]} 5. c4 {[%clk 0:02:49.4]}
5... Nf6 {[%clk 0:02:55.5]} 6. Nc3 {[%clk 0:02:47.9]} 6... Qc7 {[%clk
0:02:55.8]} 7. Be2 {[%clk 0:02:43.3]} 7... Bb4 {[%clk 0:02:55.2]} 8. Nc2 {[%clk
0:02:38.3]} 8... Bxc3+ {[%clk 0:02:52.1]} 9. bxc3 {[%clk 0:02:39.2]} 9... d6
{[%clk 0:02:51.9]} 10. f3 {[%clk 0:02:35]} 10... O-O {[%clk 0:02:49.2]} 11. O-O
{[%clk 0:02:12.8]} 11... d5 {[%clk 0:02:18.1]} 12. cxd5 {[%clk 0:02:03.2]} 12...
exd5 {[%clk 0:02:16.7]} 13. exd5 {[%clk 0:02:01.5]} 13... Qxc3 {[%clk
0:02:14.9]} 14. Ba3 {[%clk 0:01:21]} 14... Rd8 {[%clk 0:01:24.1]} 15. Bb4 {[%clk
0:01:20.2]} 15... Qb2 {[%clk 0:01:19.6]} 16. Rb1 {[%clk 0:01:15]} 16... Qxa2
{[%clk 0:01:15.9]} 17. Be7 {[%clk 0:00:58.2]} 17... Rxd5 {[%clk 0:01:08]} 18.
Qc1 {[%clk 0:00:58.4]} 18... Nc6 {[%clk 0:00:44.3]} 19. Bxf6 {[%clk 0:00:27.8]}
19... gxf6 {[%clk 0:00:43.1]} 20. Re1 {[%clk 0:00:11.2]} 20... Bf5 {[%clk
0:00:30.6]} 21. Rb2 {[%clk 0:00:07.2]} 21... Qa5 {[%clk 0:00:29.6]} 22. Ne3
{[%clk 0:00:06.9]} 22... Rc5 {[%clk 0:00:29.7]} 23. Qa1 {[%clk 0:00:03]} 23...
Qxa1 {[%clk 0:00:28.8]} 24. Rxa1 {[%clk 0:00:03.8]} 24... Nd4 {[%clk 0:00:22.6]}
25. Nxf5 {[%clk 0:00:03]} 25... Nxe2+ {[%clk 0:00:18.9]} 26. Rxe2 {[%clk
0:00:03.2]} 26... Rxf5 {[%clk 0:00:19.7]} 27. Rb2 {[%clk 0:00:03.5]} 27... b5
{[%clk 0:00:17.3]} 28. Ra5 {[%clk 0:00:03.9]} 28... Rd5 {[%clk 0:00:16.1]} 29.
Kf2 {[%clk 0:00:04.1]} 29... f5 {[%clk 0:00:13.2]} 30. Kg3 {[%clk 0:00:03.5]}
30... Kg7 {[%clk 0:00:13.4]} 31. h4 {[%clk 0:00:04.1]} 31... Kf6 {[%clk
0:00:12.4]} 32. Kh3 {[%clk 0:00:04.8]} 32... Ke5 {[%clk 0:00:12.6]} 33. Rb4
{[%clk 0:00:05.5]} 33... Kd6 {[%clk 0:00:12.3]} 34. h5 {[%clk 0:00:04.3]} 34...
Kc5 {[%clk 0:00:12.6]} 35. Rb2 {[%clk 0:00:04.5]} 35... Kb6 {[%clk 0:00:11.8]}
36. Ra1 {[%clk 0:00:04.1]} 36... a5 {[%clk 0:00:12.3]} 37. Re1 {[%clk
0:00:03.7]} 37... Ra7 {[%clk 0:00:09.7]} 38. Re8 {[%clk 0:00:03.6]} 38... b4
{[%clk 0:00:08.9]} 39. Rb8+ {[%clk 0:00:03.8]} 39... Kc5 {[%clk 0:00:06.4]} 40.
Rc2+ {[%clk 0:00:02.9]} 40... Kd6 {[%clk 0:00:02.5]} 41. Rb6+ {[%clk 0:00:02.5]}
41... Ke7 {[%clk 0:00:02.5]} 42. Re2+ {[%clk 0:00:02.3]} 42... Kd7 {[%clk
0:00:03]} 43. Rf6 {[%clk 0:00:02.5]} 43... Kc7 {[%clk 0:00:02.3]} 44. Rxf7+
{[%clk 0:00:02.9]} 44... Rd7 {[%clk 0:00:03]} 45. Rxf5 {[%clk 0:00:02.9]} 45...
a4 {[%clk 0:00:02.7]} 46. Rc5+ {[%clk 0:00:03.4]} 46... Kb6 {[%clk 0:00:03.1]}
47. Rc4 {[%clk 0:00:03.9]} 47... b3 {[%clk 0:00:03]} 48. Re6+ {[%clk 0:00:04.1]}
48... Kb5 {[%clk 0:00:03.2]} 49. Rf4 {[%clk 0:00:04.3]} 49... a3 {[%clk
0:00:03.5]} 50. Re5+ {[%clk 0:00:04.6]} 50... Kc6 {[%clk 0:00:04]} 51. Rf6+
{[%clk 0:00:04.4]} 51... Rd6 {[%clk 0:00:04.2]} 52. Rf8 {[%clk 0:00:04.9]} 52...
a2 {[%clk 0:00:04.4]} 53. Rc8+ {[%clk 0:00:04.8]} 53... Kd7 {[%clk 0:00:05]} 54.
Ree8 {[%clk 0:00:04.3]} 54... a1=Q {[%clk 0:00:05]} 55. Red8+ {[%clk 0:00:04.6]}
55... Ke6 {[%clk 0:00:05]} 56. Re8+ {[%clk 0:00:05.3]} 56... Kd5 {[%clk
0:00:05.5]} 57. Re2 {[%clk 0:00:04.4]} 57... b2 {[%clk 0:00:05.4]} 58. Rd2+
{[%clk 0:00:04.3]} 58... Ke6 {[%clk 0:00:05.8]} 59. Re2+ {[%clk 0:00:04.8]}
59... Kd7 {[%clk 0:00:06.2]} 60. Ree8 {[%clk 0:00:05.1]} 60... b1=Q {[%clk
0:00:06.7]} 61. Rcd8+ {[%clk 0:00:05.3]} 61... Kc6 {[%clk 0:00:07.1]} 62. Rc8+
{[%clk 0:00:05.8]} 62... Kd5 {[%clk 0:00:07.6]} 63. Re4 {[%clk 0:00:03]} 63...
Qxe4 {[%clk 0:00:06.7]} 64. fxe4+ {[%clk 0:00:03]} 64... Kxe4 {[%clk 0:00:07.6]}
65. h6 {[%clk 0:00:03.8]} 65... Rxh6+ {[%clk 0:00:06.2]} 66. Kg3 {[%clk
0:00:04.3]} 66... Rg7+ {[%clk 0:00:06]} 67. Kf2 {[%clk 0:00:02.5]} 67... Qd4+
{[%clk 0:00:06.7]} 68. Ke2 {[%clk 0:00:02.4]} 68... Rxg2+ {[%clk 0:00:06.9]} 0-1

[Event "*** Titled Tuesday Blitz"]
[Site "Chess.com"]
[Date "2020.05.19"]
[Round "8"]
[White "MilanJeremic"]
[Black "bait_or_mate"]
[Result "0-1"]
[WhiteElo "2296"]
[BlackElo "2460"]
[TimeControl "180+1"]
[EndTime "13:38:03 PDT"]
[Termination "bait_or_mate won by resignation"]

1. d4 {[%clk 0:02:54.6]} 1... Nf6 {[%clk 0:02:58.8]} 2. Nf3 {[%clk 0:02:54.2]}
2... e6 {[%clk 0:02:58.8]} 3. Bf4 {[%clk 0:02:54]} 3... d5 {[%clk 0:02:58.1]} 4.
e3 {[%clk 0:02:54.1]} 4... c5 {[%clk 0:02:58.8]} 5. c3 {[%clk 0:02:53.9]} 5...
Nc6 {[%clk 0:02:59.7]} 6. Nbd2 {[%clk 0:02:53]} 6... cxd4 {[%clk 0:03:00.3]} 7.
exd4 {[%clk 0:02:52.2]} 7... Nh5 {[%clk 0:03:00.6]} 8. Bg3 {[%clk 0:02:50.6]}
8... g6 {[%clk 0:02:52.9]} 9. Be2 {[%clk 0:02:48.2]} 9... Bg7 {[%clk 0:02:50.4]}
10. Qb3 {[%clk 0:02:43]} 10... O-O {[%clk 0:02:48.4]} 11. O-O {[%clk 0:02:37.9]}
11... Nxg3 {[%clk 0:02:41]} 12. hxg3 {[%clk 0:02:31.7]} 12... Rb8 {[%clk
0:02:36.7]} 13. Bb5 {[%clk 0:02:31.3]} 13... Bd7 {[%clk 0:02:29.1]} 14. Bxc6
{[%clk 0:02:29.6]} 14... Bxc6 {[%clk 0:02:30]} 15. Rfe1 {[%clk 0:02:29.3]} 15...
Qd6 {[%clk 0:02:22.3]} 16. Ne5 {[%clk 0:02:28.1]} 16... Rfc8 {[%clk 0:02:20.6]}
17. Ndf3 {[%clk 0:02:27.2]} 17... Be8 {[%clk 0:02:20.2]} 18. a3 {[%clk
0:02:25.8]} 18... b6 {[%clk 0:02:19.8]} 19. Qb4 {[%clk 0:02:25.7]} 19... Qd8
{[%clk 0:02:16.6]} 20. Qb3 {[%clk 0:02:18.1]} 20... f6 {[%clk 0:02:12.6]} 21.
Nd3 {[%clk 0:02:16.6]} 21... Bf7 {[%clk 0:02:12.2]} 22. Nf4 {[%clk 0:02:13.8]}
22... Qd6 {[%clk 0:02:11.2]} 23. Qb4 {[%clk 0:02:11.9]} 23... Rd8 {[%clk
0:02:02.6]} 24. Qxd6 {[%clk 0:02:10.5]} 24... Rxd6 {[%clk 0:02:03.5]} 25. Re2
{[%clk 0:02:10]} 25... Rc8 {[%clk 0:01:55.4]} 26. Rae1 {[%clk 0:02:09.2]} 26...
Rcc6 {[%clk 0:01:54.8]} 27. Nd3 {[%clk 0:02:07]} 27... Kf8 {[%clk 0:01:50.9]}
28. Nb4 {[%clk 0:02:06.1]} 28... Rc8 {[%clk 0:01:50.5]} 29. g4 {[%clk
0:02:04.3]} 29... g5 {[%clk 0:01:42.8]} 30. Nd3 {[%clk 0:02:02.4]} 30... Ke7
{[%clk 0:01:36.5]} 31. Nd2 {[%clk 0:01:58]} 31... Kd7 {[%clk 0:01:35.1]} 32. g3
{[%clk 0:01:54.9]} 32... Bg6 {[%clk 0:01:34.8]} 33. Re3 {[%clk 0:01:47.2]} 33...
h5 {[%clk 0:01:34.2]} 34. gxh5 {[%clk 0:01:46.1]} 34... Bxh5 {[%clk 0:01:35.1]}
35. Kg2 {[%clk 0:01:42.5]} 35... Bg6 {[%clk 0:01:34.3]} 36. f4 {[%clk
0:01:39.1]} 36... Bh6 {[%clk 0:01:23.7]} 37. Rf1 {[%clk 0:01:36.8]} 37... Bxd3
{[%clk 0:01:21.7]} 38. Rxd3 {[%clk 0:01:36.4]} 38... gxf4 {[%clk 0:01:22.3]} 39.
gxf4 {[%clk 0:01:36.4]} 39... Rg8+ {[%clk 0:01:22.8]} 40. Rg3 {[%clk 0:01:36.3]}
40... Rxg3+ {[%clk 0:01:19.4]} 41. Kxg3 {[%clk 0:01:36.1]} 41... Ke7 {[%clk
0:01:18.8]} 42. Rh1 {[%clk 0:01:35.4]} 42... Bg7 {[%clk 0:01:17.5]} 43. Nf3
{[%clk 0:01:32.7]} 43... Rd8 {[%clk 0:01:15.2]} 44. Ne1 {[%clk 0:01:29]} 44...
Rh8 {[%clk 0:01:14.9]} 45. Rxh8 {[%clk 0:01:27.9]} 45... Bxh8 {[%clk 0:01:15.8]}
46. Nd3 {[%clk 0:01:26.9]} 46... Bg7 {[%clk 0:01:11.7]} 47. Kg4 {[%clk
0:01:26.3]} 47... f5+ {[%clk 0:00:37.1]} 48. Kf3 {[%clk 0:01:22.2]} 48... Bf6
{[%clk 0:00:35.9]} 49. Nb4 {[%clk 0:01:21.5]} 49... Kd6 {[%clk 0:00:33.9]} 50.
Nc2 {[%clk 0:01:19.6]} 50... Bh4 {[%clk 0:00:33.5]} 51. Ke3 {[%clk 0:01:15.7]}
51... Kc6 {[%clk 0:00:33.3]} 52. Kd3 {[%clk 0:01:14.9]} 52... Kb5 {[%clk
0:00:33.3]} 53. b3 {[%clk 0:01:14]} 53... Bg3 {[%clk 0:00:33]} 54. Ke3 {[%clk
0:01:12.1]} 54... Kc6 {[%clk 0:00:30.6]} 55. Nb4+ {[%clk 0:01:11.4]} 55... Kd6
{[%clk 0:00:30.5]} 56. Nd3 {[%clk 0:01:11.4]} 56... Bh4 {[%clk 0:00:27.9]} 57.
c4 {[%clk 0:01:10.5]} 57... a5 {[%clk 0:00:17.7]} 58. Kd2 {[%clk 0:01:10.1]}
58... Bg3 {[%clk 0:00:17]} 59. Kc3 {[%clk 0:01:09.7]} 59... Kc6 {[%clk
0:00:14.3]} 60. b4 {[%clk 0:01:08.5]} 60... dxc4 {[%clk 0:00:13.3]} 61. Kxc4
{[%clk 0:01:07.5]} 61... b5+ {[%clk 0:00:13.8]} 62. Kc3 {[%clk 0:01:06]} 62...
a4 {[%clk 0:00:13.3]} 63. Kd2 {[%clk 0:01:04.6]} 63... Kd5 {[%clk 0:00:13.5]}
64. Ke3 {[%clk 0:01:04.4]} 64... Kc4 {[%clk 0:00:13.7]} 65. Nc5 {[%clk
0:01:04.2]} 65... Kd5 {[%clk 0:00:10.4]} 66. Nd7 {[%clk 0:01:01.3]} 66... Be1
{[%clk 0:00:09.6]} 67. Nf6+ {[%clk 0:00:59.2]} 67... Kc4 {[%clk 0:00:08.5]} 68.
Nd7 {[%clk 0:00:59.2]} 68... Bc3 {[%clk 0:00:06.8]} 69. Nf8 {[%clk 0:00:55.3]}
69... Kd5 {[%clk 0:00:06.3]} 70. Kd3 {[%clk 0:00:54.9]} 70... Bb2 {[%clk
0:00:05.7]} 71. Nd7 {[%clk 0:00:53.2]} 71... Bxa3 {[%clk 0:00:05.1]} 72. Kc3
{[%clk 0:00:53.1]} 72... Bc1 {[%clk 0:00:04.9]} 73. Nb6+ {[%clk 0:00:51]} 73...
Kc6 {[%clk 0:00:04.5]} 74. Nc8 {[%clk 0:00:49.5]} 74... Bxf4 {[%clk 0:00:04.5]}
75. Ne7+ {[%clk 0:00:49.5]} 75... Kd7 {[%clk 0:00:04.6]} 76. Ng6 {[%clk
0:00:49.1]} 76... Bg3 {[%clk 0:00:04.5]} 77. Kd3 {[%clk 0:00:48.5]} 77... Ke8
{[%clk 0:00:03]} 78. d5 {[%clk 0:00:46.2]} 78... exd5 {[%clk 0:00:02.7]} 79. Kd4
{[%clk 0:00:46.2]} 79... Kf7 {[%clk 0:00:03]} 80. Nh8+ {[%clk 0:00:45.3]} 80...
Kg7 {[%clk 0:00:02.9]} 81. Kxd5 {[%clk 0:00:45.6]} 81... Kxh8 {[%clk 0:00:03.2]}
82. Kc5 {[%clk 0:00:45.8]} 82... a3 {[%clk 0:00:03.9]} 83. Kxb5 {[%clk 0:00:46]}
83... a2 {[%clk 0:00:04.8]} 84. Kc6 {[%clk 0:00:46.2]} 84... a1=Q {[%clk
0:00:05.7]} 85. b5 {[%clk 0:00:46.6]} 85... Qc3+ {[%clk 0:00:05.9]} 86. Kd7
{[%clk 0:00:46.1]} 86... Qc7+ {[%clk 0:00:05.9]} 87. Ke6 {[%clk 0:00:46]} 87...
Qb6+ {[%clk 0:00:05.4]} 0-1